bitfinex-derivatives/quotes_SOLF0:USTF0_20250818
["timestamp","ask_amount","ask_price","bid_price","bid_amount"]
[1755509945724,86.88,181.05,180.97,3.13]
[1755509945920,2.87,181.04,180.97,3.13]
[1755509946324,0.03574409,181.03,180.97,3.13]
[1755509946528,2.90574409,181.03,180.97,3.13]
[1755509947130,170.16,181.02,180.9,13.2708794]
[1755509947322,170.16,181.02,180.93,3.13]
[1755509947323,173.03,181.02,180.93,3.13]
[1755509947519,2.87,181.02,180.93,3.13]
[1755509947725,8.08876142,181.1,180.93,3.13]
[1755509947925,2.87,181.08,180.95,3.13]
[1755509948321,170.14,181.07,180.95,3.13]
[1755509948520,173.01,181.06,180.96,3.13]
[1755509948729,2.87,181.05,180.96,3.13]
[1755509949430,170.04,181.04,180.96,3.13]
[1755509950331,172.83,181.03,180.96,3.13]
[1755509950528,2.87,181.02,180.96,3.13]
[1755509951131,2.87,181.02,180.94,3.13]
[1755509951630,2.87,181.02,180.88,13.2708794]
[1755509951631,2.87,181.02,180.92,3.13]
[1755509952028,2.87,181.0,180.92,3.13]
[1755509952232,371.22,180.99,180.87,6.14366973]
[1755509952532,371.22,180.99,180.85,9.20467219]
[1755509952533,2.87,180.98,180.9,3.13]
[1755509953329,2.87,180.96,180.9,3.13]
[1755509953629,169.64,180.95,180.9,3.13]
[1755509954031,169.64,180.95,180.85,6.14366973]
[1755509954331,2.87,180.94,180.92,3.13]
[1755509954533,8.96501338,181.06,180.91,3.13]
[1755509954728,2.87,181.04,180.95,3.13]
[1755509955035,172.56,181.03,180.95,3.13]
[1755509955232,172.62,181.02,180.95,3.13]
[1755509955635,2.87,181.04,180.95,3.13]
[1755509955934,371.22,181.09,180.95,3.13]
[1755509955935,172.54,181.03,180.95,3.13]
[1755509956234,2.87,181.02,180.95,3.13]
[1755509956729,172.58,181.01,180.95,3.13]
[1755509956939,2.87,181.0,180.93,3.13]
[1755509957433,2.87,180.97,180.87,3.13]
[1755509957639,0.0368439,180.98,180.89,5.5248]
[1755509957933,172.32,180.97,180.9,3.13]
[1755509958138,172.28,180.99,180.91,3.13]
[1755509958925,172.26,180.99,180.91,3.13]
[1755509959124,2.87,181.01,180.91,5.5244]
[1755509959329,172.06,181.0,180.92,3.13]
[1755509959931,2.87,180.99,180.92,3.13]
[1755509960134,171.88,180.98,180.92,3.13]
[1755509962334,171.42,180.98,180.92,3.13]
[1755509963543,0.03548695,180.97,180.93,3.02]
[1755509963841,0.03548695,180.97,180.95,3.02]
[1755509964035,0.03548695,180.97,180.93,3.02]
[1755509964242,0.03548695,180.97,180.88,9.16366973]
[1755509964437,0.03548695,180.97,180.88,220.14366973]
[1755509964638,0.03548695,180.97,180.9,3.02]
[1755509965437,0.03548695,180.97,180.91,5.5244]
[1755509965639,0.03548695,180.97,180.92,3.02]
[1755509966140,6.09501338,181.08,180.93,0.04248663]
[1755509966441,170.8,181.05,180.93,220.18615636]
[1755509966642,2.99,181.04,180.98,3.02]
[1755509967342,2.99,181.04,180.99,0.03501646]
[1755509967542,170.8,181.05,180.99,0.03501646]
[1755509967844,2.99,181.02,181.0,3.02]
[1755509968044,175.8,181.01,181.0,3.02]
[1755509968349,175.7,181.01,181.0,3.02]
[1755509968539,175.7,181.01,180.99,0.03939635]
[1755509968745,2.99,181.0,180.99,0.03939635]
[1755509969543,175.44,181.0,180.99,3.05939635]
[1755509970045,2.99,181.0,180.99,0.03939635]
[1755509970344,175.08,181.0,180.99,3.05939635]
[1755509970546,371.22,181.09,180.99,0.03939635]
[1755509970741,2.99,181.03,181.0,3.02]
[1755509970946,2.99,181.02,181.0,3.02]
[1755509971247,177.83,181.01,180.94,3.02]
[1755509971440,174.84,181.0,180.99,0.0349174]
[1755509971947,177.83,181.0,180.99,0.0349174]
[1755509973146,371.22,181.09,181.0,3.02]
[1755509973345,2.99,181.07,181.0,3.02]
[1755509974038,2.99,181.06,181.03,3.02]
[1755509974244,180.08,181.05,181.04,3.02]
[1755509974450,371.22,181.09,181.03,3.02]
[1755509974645,179.84,181.08,181.03,3.02]
[1755509975038,371.22,181.09,181.03,3.02]
[1755509975242,179.74,181.08,181.03,3.02]
[1755509975443,182.73,181.08,181.03,3.02]
[1755509975651,2.99,181.08,181.03,3.02]
[1755509975846,371.22,181.09,181.03,3.02]
[1755509976243,179.56,181.08,181.04,3.02]
[1755509976443,2.99,181.05,181.02,3.05931711]
[1755509976644,182.43,181.04,181.02,3.05931711]
[1755509977150,182.43,181.04,181.02,0.03931711]
[1755509977151,2.99,181.03,181.02,0.03931711]
[1755509977451,179.44,181.04,181.02,0.03931711]
[1755509977653,371.22,181.09,181.02,3.05931711]
[1755509977847,179.66,181.08,181.02,3.05931711]
[1755509978448,371.22,181.09,181.02,3.05931711]
[1755509978847,185.48,181.08,181.02,3.05931711]
[1755509979042,371.22,181.09,181.02,3.05931711]
[1755509979646,185.7,181.08,181.03,3.02]
[1755509980246,371.22,181.09,181.04,3.02]
[1755509980445,185.6,181.08,181.04,3.02]
[1755509981454,185.6,181.08,181.03,214.0]
[1755509981455,2.99,181.06,181.02,0.03931711]
[1755509981640,2.99,181.04,181.02,0.03931711]
[1755509981846,188.65,181.03,181.02,0.03931711]
[1755509982155,188.77,181.03,181.02,0.03931711]
[1755509982354,2.99,181.03,181.02,0.03931711]
[1755509982554,188.85,181.03,181.02,0.03931711]
[1755509983050,2.99,181.05,181.02,0.03931711]
[1755509983246,188.61,181.04,181.02,3.05931711]
[1755509983450,185.56,181.03,181.02,3.05931711]
[1755509983651,2.99,181.06,181.03,3.02]
[1755509983849,185.38,181.05,181.04,3.02]
[1755509984052,185.38,181.05,181.02,3.05931711]
[1755509984053,2.99,181.04,181.02,3.05931711]
[1755509984547,2.99,181.04,181.02,0.03931711]
[1755509984751,185.38,181.05,181.02,0.03931711]
[1755509984945,2.99,181.03,181.02,0.03931711]
[1755509985151,188.17,181.03,181.02,0.03931711]
[1755509986145,187.95,181.03,181.02,0.03931711]
[1755509986346,187.97,181.03,181.02,0.03931711]
[1755509986543,2.99,181.03,181.02,0.03931711]
[1755509986853,187.97,181.03,181.02,0.03931711]
[1755509987056,2.99,181.03,181.02,0.03931711]
[1755509987251,187.73,181.03,181.02,0.03931711]
[1755509989148,2.99,181.03,181.02,0.03931711]
[1755509989349,187.19,181.03,181.02,0.03931711]
[1755509990757,186.81,181.03,181.02,0.03931711]
[1755509990953,2.99,181.03,181.02,0.03931711]
[1755509991150,186.65,181.03,181.02,0.03931711]
[1755509991451,186.53,181.03,181.02,0.03931711]
[1755509994855,2.99,181.03,181.02,0.03931711]
[1755509995055,185.67,181.03,181.02,0.03931711]
[1755509995962,185.55,181.03,181.02,0.03931711]
[1755509996150,2.99,181.03,181.02,0.03931711]
[1755509996355,185.43,181.03,181.02,0.03931711]
[1755509998457,184.6,181.03,181.02,0.03931711]
[1755509998851,184.44,181.03,181.02,0.03931711]
[1755509999156,3.0,181.03,181.02,0.03931711]
[1755509999354,184.44,181.03,181.02,0.03931711]
[1755509999554,3.0,181.03,181.02,0.03931711]
[1755509999757,184.28,181.03,181.02,0.03931711]
[1755510000258,3.0,181.02,180.96,3.1]
[1755510000459,3.0,181.01,180.94,3.1]
[1755510000661,181.28,181.03,180.94,3.1]
[1755510000662,3.0,180.98,180.94,3.1]
[1755510000853,183.82,180.97,180.95,3.1]
[1755510001260,3.0,180.97,180.95,3.1]
[1755510001560,180.62,180.96,180.88,4.57748054]
[1755510001759,180.56,180.95,180.88,4.57748054]
[1755510002153,371.18,180.99,180.89,3.1]
[1755510002354,180.44,180.98,180.92,3.1]
[1755510003060,0.03704646,180.97,180.94,3.1]
[1755510003960,3.03704646,180.97,180.95,3.1]
[1755510004152,0.03704646,180.97,180.94,3.1]
[1755510004561,179.78,180.96,180.94,3.1]
[1755510005558,0.03704646,180.97,180.94,3.1]
[1755510006464,179.2,180.96,180.94,3.1]
[1755510007865,179.2,180.96,180.94,214.0]
[1755510008066,179.2,180.96,180.95,3.1]
[1755510008369,182.2,180.96,180.94,214.0]
[1755510008665,3.0,180.95,180.93,3.14022222]
[1755510008865,3.0,180.95,180.94,3.1]
[1755510009066,3.03704646,180.97,180.94,3.1]
[1755510009271,178.5,180.96,180.95,3.1]
[1755510009564,181.5,180.96,180.93,0.04022222]
[1755510009863,3.0,180.95,180.93,0.04022222]
[1755510010060,3.0,180.95,180.93,3.14022222]
[1755510010262,3.0,180.95,180.93,0.04022222]
[1755510010458,178.12,180.94,180.93,3.14022222]
[1755510010668,3.03704646,180.97,180.93,3.14022222]
[1755510010965,3.0,180.96,180.94,3.1]
[1755510011166,3.03704646,180.97,180.95,3.1]
[1755510011364,177.9,180.96,180.95,3.1]
[1755510011565,180.9,180.96,180.95,3.1]
[1755510011766,177.9,180.96,180.95,3.1]
[1755510011968,180.9,180.96,180.95,3.1]
[1755510012467,177.72,180.96,180.93,0.04022222]
[1755510013063,177.72,180.96,180.94,3.1]
[1755510013263,177.72,180.96,180.95,3.1]
[1755510013672,180.72,180.96,180.95,3.1]
[1755510013968,3.0,180.95,180.93,3.14022222]
[1755510014170,3.0,180.94,180.93,3.14022222]
[1755510014366,177.72,180.96,180.93,3.14022222]
[1755510014563,3.0,180.95,180.93,3.14022222]
[1755510015264,0.03704646,180.97,180.94,3.1]
[1755510015466,0.03704646,180.97,180.93,0.04022222]
[1755510015467,0.03704646,180.97,180.95,3.1]
[1755510015768,179.94,180.97,180.96,4.57748054]
[1755510016171,3.0,181.04,180.96,4.57748054]
[1755510016373,3.0,181.04,180.97,3.1]
[1755510016570,182.64,181.03,180.97,3.1]
[1755510017169,182.56,181.02,181.0,3.1]
[1755510017371,3.0,181.02,181.01,3.1]
[1755510017578,182.34,181.02,181.01,3.1]
[1755510018266,3.0,181.02,181.01,3.1]
[1755510018468,179.14,181.02,181.01,3.1]
[1755510018966,182.14,181.02,181.01,3.1]
[1755510019269,182.08,181.02,180.99,0.03835709]
[1755510019471,371.26,181.08,181.0,3.1]
[1755510019472,374.26,181.08,181.0,3.1]
[1755510019676,183.8,181.07,181.0,3.1]
[1755510019872,371.26,181.08,181.0,3.1]
[1755510019873,183.74,181.06,181.0,3.1]
[1755510020474,3.0,181.05,181.0,3.1]
[1755510020683,3.0,181.05,181.01,3.1]
[1755510020888,3.0,181.04,181.01,3.1]
[1755510021278,3.0,181.03,181.01,3.1]
[1755510021481,183.8,181.02,181.01,3.1]
[1755510022082,180.8,181.02,181.0,0.0388012]
[1755510022290,3.15,181.01,181.0,3.0088012]
[1755510022694,3.15,181.01,181.0,0.0388012]
[1755510023392,183.39,181.01,181.0,3.0088012]
[1755510023590,183.39,181.01,181.0,0.0388012]
[1755510023785,371.26,181.08,181.0,0.0388012]
[1755510024085,183.19,181.07,181.01,2.97]
[1755510024487,3.15,181.07,181.01,2.97]
[1755510024680,180.7,181.06,181.01,2.97]
[1755510025389,180.52,181.05,181.01,2.97]
[1755510025592,180.52,181.05,181.0,0.0388012]
[1755510025793,183.67,181.05,181.01,2.97]
[1755510026186,180.52,181.05,181.01,2.97]
[1755510026391,3.15,181.07,181.01,2.97]
[1755510026994,183.85,181.06,181.01,2.97]
[1755510027698,180.58,181.05,181.01,2.97]
[1755510027991,180.5,181.04,181.01,2.97]
[1755510028191,183.65,181.04,181.0,0.0388012]
[1755510028392,180.5,181.04,181.03,2.97]
[1755510029195,180.5,181.04,181.0,0.0388012]
[1755510029196,371.26,181.08,181.0,0.0388012]
[1755510029392,3.15,181.06,181.01,2.97]
[1755510029590,3.15,181.04,181.01,2.97]
[1755510029797,183.19,181.03,181.02,2.97]
[1755510031700,183.19,181.03,181.0,0.0388012]
[1755510031889,371.26,181.08,181.0,7.58628174]
[1755510032096,371.26,181.08,181.04,4.57748054]
[1755510032393,371.26,181.08,181.05,2.97]
[1755510032604,183.7,181.07,181.05,2.97]
[1755510032794,371.26,181.08,181.05,8.4903]
[1755510033094,371.26,181.08,181.05,10.13528773]
[1755510033298,183.8,181.07,181.06,2.97]
[1755510034496,184.08,181.07,181.06,2.97]
[1755510035201,371.14,181.19,181.06,2.97]
[1755510035502,371.14,181.19,181.05,0.03750719]
[1755510035503,3.15,181.17,181.07,2.97]
[1755510035688,3.92269532,181.16,181.07,2.97]
[1755510035893,188.85,181.15,181.07,2.97]
[1755510036095,3.15,181.14,181.1,3.00903637]
[1755510036797,3.15,181.18,181.11,2.97]
[1755510036995,3.15,181.15,181.11,2.97]
[1755510037189,188.55,181.14,181.1,0.03903637]
[1755510037595,3.15,181.13,181.1,3.00903637]
[1755510037799,185.4,181.14,181.1,3.00903637]
[1755510037996,188.55,181.14,181.11,2.97]
[1755510038199,185.4,181.14,181.11,2.97]
[1755510038405,371.14,181.19,181.11,2.97]
[1755510038406,3.15,181.16,181.11,2.97]
[1755510038701,3.15,181.14,181.12,2.97]
[1755510038896,185.46,181.13,181.11,2.97]
[1755510039104,185.44,181.12,181.11,2.97]
[1755510039500,3.15,181.14,181.12,2.97]
[1755510039701,185.22,181.13,181.12,2.97]
[1755510039999,3.15,181.16,181.12,2.97]
[1755510040196,3.15,181.16,181.1,0.03903637]
[1755510040197,371.14,181.19,181.1,5.55783637]
[1755510040405,3.15,181.28,181.12,2.97]
[1755510040593,190.93069996,181.27,181.18,4.57748054]
[1755510040797,3.15,181.26,181.19,2.97]
[1755510040994,0.03878864,181.22,181.19,2.97]
[1755510041295,186.92,181.21,181.2,2.97]
[1755510041501,0.03878864,181.22,181.2,2.97]
[1755510041898,186.78,181.21,181.2,2.97]
[1755510042501,0.03878864,181.22,181.19,5.55325551]
[1755510042694,0.03878864,181.22,181.21,2.97]
[1755510042904,371.04,181.29,181.21,8.4852]
[1755510043103,4.57748054,181.36,181.23,2.97]
[1755510043300,370.96,181.37,181.25,2.97]
[1755510043301,3.15,181.3,181.25,2.97]
[1755510043505,3.15,181.28,181.26,2.97]
[1755510043703,3.15,181.28,181.09,62.0]
[1755510043704,188.1,181.27,181.23,4.57748054]
[1755510043904,370.96,181.37,181.23,4.57748054]
[1755510044104,3.15,181.32,181.09,73.0382]
[1755510044402,188.16,181.34,181.26,7.0898536]
[1755510044603,188.16,181.34,181.27,2.97]
[1755510044904,3.15,181.33,181.27,2.97]
[1755510045101,3.15,181.32,181.29,2.97]
[1755510045306,3.15,181.32,181.31,2.97]
[1755510045502,3.15,181.33,181.28,3.00893628]
[1755510045706,3.15,181.33,181.25,2.97]
[1755510046104,3.15,181.33,181.29,0.04108626]
[1755510046698,191.48,181.32,181.29,0.04108626]
[1755510046901,3.15,181.3,181.29,0.04108626]
[1755510047098,370.96,181.37,181.29,0.04108626]
[1755510047299,3.15,181.31,181.3,2.97]
[1755510047511,194.73,181.31,181.29,0.04108626]
[1755510047704,3.15,181.3,181.29,0.04108626]
[1755510048608,194.87,181.3,181.29,0.04108626]
[1755510049301,3.15,181.29,181.21,2.97]
[1755510050097,194.87,181.28,181.21,2.97]
[1755510050304,192.5,181.27,181.21,2.97]
[1755510050806,3.15,181.27,181.23,0.04069902]
[1755510051108,192.35680723,181.26,181.25,2.97]
[1755510051312,192.35680723,181.26,181.25,216.97]
[1755510051496,195.50680723,181.26,181.25,216.97]
[1755510052004,192.03680723,181.26,181.25,216.97]
[1755510052708,0.03680723,181.26,181.25,216.97]
[1755510054899,0.03680723,181.26,181.23,2.94069902]
[1755510055207,0.03680723,181.26,181.23,0.04069902]
[1755510055412,2.98,181.24,181.23,0.04069902]
[1755510057810,191.21680723,181.26,181.24,2.9]
[1755510058009,3.01680723,181.26,181.23,0.04069902]
[1755510058210,194.19680723,181.26,181.25,2.9]
[1755510058517,3.01680723,181.26,181.25,2.9]
[1755510059807,3.01680723,181.26,181.23,2.94069902]
[1755510060015,3.01680723,181.26,181.24,2.9]
[1755510060213,2.98,181.25,181.23,0.04069902]
[1755510060718,3.01680723,181.26,181.23,0.04069902]
[1755510060910,3.01680723,181.26,181.25,2.9]
[1755510061111,0.03680723,181.26,181.25,2.9]
[1755510061516,2.98,181.25,181.23,2.94069902]
[1755510061818,3.01680723,181.26,181.23,0.04069902]
[1755510062212,3.01680723,181.26,181.25,2.9]
[1755510062409,0.03680723,181.26,181.23,0.04069902]
[1755510062622,9.00195447,181.46,181.25,7.0898536]
[1755510062623,2.98,181.35,181.25,7.0898536]
[1755510062919,2.98,181.33,181.23,0.04069902]
[1755510063110,2.98,181.33,181.26,2.9]
[1755510063613,2.98,181.33,181.24,2.9]
[1755510064015,2.98,181.33,181.28,0.04035284]
[1755510064215,190.76,181.34,181.28,0.04035284]
[1755510064422,2.98,181.32,181.3,2.9]
[1755510064720,193.74,181.34,181.31,2.9]
[1755510064915,190.76,181.34,181.29,0.03827477]
[1755510065117,190.76,181.34,181.33,2.9]
[1755510065412,2.98,181.36,181.3,2.9]
[1755510065919,191.84,181.38,181.24,221.0898536]
[1755510065920,2.98,181.35,181.33,2.9]
[1755510066321,2.98,181.33,181.24,221.0898536]
[1755510066518,2.98,181.35,181.25,2.9]
[1755510066717,2.98,181.35,181.32,0.03829267]
[1755510067226,2.98,181.35,181.26,2.9]
[1755510067415,2.98,181.35,181.32,0.03740116]
[1755510067912,2.98,181.35,181.25,5.5145]
[1755510068120,2.98,181.35,181.32,0.04182485]
[1755510068320,191.84,181.38,181.32,2.94182485]
[1755510068519,7.0898536,181.44,181.22,7.0898536]
[1755510068712,191.46,181.36,181.26,7.0898536]
[1755510069027,2.98,181.36,181.35,2.9]
[1755510069319,2.98,181.36,181.25,7.0898536]
[1755510069510,2.98,181.35,181.34,0.03739288]
[1755510069710,2.98,181.36,181.31,2.9]
[1755510069915,373.94,181.37,181.26,2.9]
[1755510070221,373.94,181.37,181.34,2.9]
[1755510070425,2.98,181.36,181.34,2.9]
[1755510070720,2.98,181.46,181.31,2.9]
[1755510070925,2.98,181.44,181.35,2.9]
[1755510071214,370.6,181.5,181.35,2.9]
[1755510071215,2.98,181.42,181.35,2.9]
[1755510071617,2.98,181.42,181.37,0.03496541]
[1755510071820,2.98,181.42,181.37,2.93496541]
[1755510072224,2.98,181.4,181.38,2.9]
[1755510073418,190.84,181.43,181.37,0.03496541]
[1755510073623,2.98,181.38,181.37,0.03496541]
[1755510073928,2.98,181.38,181.37,2.93496541]
[1755510074617,2.98,181.41,181.37,0.03496541]
[1755510074817,2.98,181.4,181.38,2.9]
[1755510075023,2.98,181.4,181.37,0.03496541]
[1755510075226,193.82,181.43,181.38,2.9]
[1755510075424,2.98,181.42,181.39,2.9]
[1755510075724,2.98,181.41,181.39,2.9]
[1755510075930,2.98,181.41,181.37,0.03496541]
[1755510075931,3.90878639,181.4,181.37,0.03496541]
[1755510076117,2.98,181.38,181.37,0.03496541]
[1755510076429,3.90878639,181.38,181.37,0.03496541]
[1755510076726,2.98,181.38,181.37,0.03496541]
[1755510076934,6.88878639,181.38,181.37,0.03496541]
[1755510079018,2.98,181.45,181.37,2.93496541]
[1755510079622,2.98,181.46,181.4,2.9]
[1755510080323,2.98,181.46,181.41,0.04029186]
[1755510080525,2.98,181.46,181.43,2.9]
[1755510080827,2.98,181.46,181.44,2.9]
[1755510081723,6.09727794,181.57,181.44,2.9]
[1755510082028,2.98,181.47,181.42,2.9]
[1755510082227,189.53899471,181.56,181.42,2.9]
[1755510082432,2.98,181.49,181.42,2.9]
[1755510082623,2.98,181.49,181.44,3.14]
[1755510082826,2.98,181.48,181.46,3.14]
[1755510083129,2.98,181.55,181.44,3.14]
[1755510083331,2.65768106,181.54,181.44,3.14]
[1755510083528,2.98,181.53,181.45,3.14]
[1755510083825,2.98,181.52,181.49,3.14]
[1755510084131,2.98,181.52,181.5,3.14]
[1755510084429,2.98,181.54,181.51,3.14]
[1755510084729,2.98,181.53,181.51,3.14]
[1755510084924,2.98,181.58,181.52,3.14]
[1755510085228,2.98,181.57,181.52,3.14]
[1755510085430,2.98,181.58,181.48,3.14]
[1755510085728,2.98,181.58,181.53,3.18052005]
[1755510086229,189.0,181.59,181.53,3.18052005]
[1755510086528,2.98,181.56,181.54,3.14]
[1755510086925,2.98,181.56,181.55,3.14]
[1755510087319,189.0,181.59,181.53,0.04052005]
[1755510087523,2.98,181.55,181.53,3.18052005]
[1755510087926,189.0,181.59,181.53,0.04052005]
[1755510088126,2.98,181.54,181.53,0.04052005]
[1755510088626,3.54,181.54,181.46,3.14]
[1755510088825,3.54,181.54,181.31,489.93175254]
[1755510088826,2.98,181.54,181.44,3.14]
[1755510089829,2.98,181.54,181.44,10.2298536]
[1755510090024,2.98,181.54,181.47,0.03505024]
[1755510091130,7.0898536,181.58,181.47,0.03505024]
[1755510091131,3.87532041,181.53,181.47,0.03505024]
[1755510091330,2.98,181.51,181.48,3.14]
[1755510091628,2.98,181.49,181.4,3.14]
[1755510091935,193.14,181.52,181.48,0.03569482]
[1755510092130,193.14,181.52,181.5,3.14]
[1755510092432,190.16,181.52,181.51,3.14]
[1755510092736,3.96988315,181.52,181.46,0.04203689]
[1755510092929,2.98,181.54,181.44,5.5089]
[1755510093132,2.98,181.56,181.47,0.04023729]
[1755510093433,3.96841945,181.55,181.48,3.14]
[1755510093621,3.96841945,181.54,181.48,3.14]
[1755510093822,2.98,181.56,181.48,3.14]
[1755510094035,2.98,181.54,181.48,3.14]
[1755510094224,3.96818626,181.53,181.47,0.04023729]
[1755510094428,3.96851261,181.52,181.45,3.14]
[1755510094629,2.98,181.51,181.45,3.14]
[1755510094829,2.98,181.51,181.48,0.03605317]
[1755510095226,3.96935618,181.5,181.48,0.03605317]
[1755510095433,2.98,181.49,181.48,0.03605317]
[1755510095936,8.04878225,181.57,181.48,0.03605317]
[1755510096131,2.98,181.49,181.48,0.03605317]
[1755510097431,2.98,181.51,181.48,3.17605317]
[1755510097638,189.34,181.57,181.48,3.17605317]
[1755510097830,2.98,181.55,181.48,3.17605317]
[1755510098034,189.34,181.57,181.48,3.17605317]
[1755510098035,3.97006196,181.54,181.48,3.17605317]
[1755510098234,6.95006196,181.53,181.48,3.17605317]
[1755510098534,2.98,181.53,181.48,3.17605317]
[1755510098736,2.98,181.53,181.48,0.03605317]
[1755510098938,2.98,181.52,181.5,3.14]
[1755510099135,2.98,181.51,181.48,3.17605317]
[1755510099333,2.98,181.53,181.51,3.14]
[1755510099534,2.98,181.52,181.49,3.14]
[1755510099732,189.34,181.57,181.48,0.0404126]
[1755510099733,2.98,181.56,181.48,0.0404126]
[1755510099939,2.98,181.54,181.48,0.0404126]
[1755510100137,189.34,181.57,181.48,0.0404126]
[1755510100138,2.98,181.52,181.48,0.0404126]
[1755510100437,3.97076846,181.51,181.48,0.0404126]
[1755510100733,2.98,181.49,181.48,0.0404126]
[1755510102634,6.95682582,181.49,181.48,0.0404126]
[1755510103736,2.98,181.48,181.32,7.0898536]
[1755510103943,2.98,181.46,181.33,3.14]
[1755510104144,2.98,181.44,181.33,3.14]
[1755510104434,2.98,181.44,181.34,3.14]
[1755510105140,0.03857928,181.41,181.34,3.14]
[1755510105933,2.98,181.4,181.34,3.14]
[1755510106538,0.03857928,181.41,181.34,3.14]
[1755510107239,0.03857928,181.41,181.37,3.14]
[1755510107433,0.03857928,181.41,181.38,3.14]
[1755510107633,0.03857928,181.41,181.4,3.14]
[1755510107836,2.98,181.4,181.38,3.14]
[1755510108638,0.03857928,181.41,181.36,0.03701709]
[1755510108843,0.03857928,181.41,181.37,3.14]
[1755510109647,0.03857928,181.41,181.38,3.14]
[1755510110942,0.03857928,181.41,181.38,8.6508]
[1755510111243,0.03857928,181.41,181.39,3.14]
[1755510111641,2.98,181.49,181.39,3.14]
[1755510111841,2.98,181.49,181.4,7.0898536]
[1755510111842,3.99521785,181.48,181.4,7.0898536]
[1755510112035,3.99521785,181.47,181.41,3.14]
[1755510112240,2.98,181.49,181.41,3.14]
[1755510112439,3.08,181.47,181.41,3.14]
[1755510112944,3.08,181.46,181.43,2.95838582]
[1755510113241,3.08,181.45,181.43,2.95838582]
[1755510113447,376.33727794,181.55,181.44,2.92]
[1755510113745,3.08,181.53,181.44,2.92]
[1755510113944,3.99603175,181.52,181.44,2.92]
[1755510114136,3.99603175,181.51,181.44,2.92]
[1755510114338,3.08,181.52,181.47,2.9592044]
[1755510114542,3.08,181.5,181.47,2.9592044]
[1755510114742,3.08,181.5,181.48,2.92]
[1755510115753,3.08,181.5,181.49,2.92]
[1755510116047,3.08,181.52,181.5,2.92]
[1755510116248,3.99676012,181.51,181.47,0.0392044]
[1755510116445,3.08,181.54,181.47,2.92]
[1755510116652,3.08,181.51,181.48,2.92]
[1755510116847,370.24,181.55,181.47,0.03879859]
[1755510117047,3.99710968,181.54,181.47,0.03879859]
[1755510117345,3.08,181.52,181.46,2.92]
[1755510117652,3.08,181.5,181.49,0.0416503]
[1755510117838,0.95904757,181.58,181.49,0.0416503]
[1755510118044,7.07767258,181.57,181.5,2.92]
[1755510118346,3.08,181.62,181.53,2.92]
[1755510118651,3.08,181.6,181.53,2.92]
[1755510118837,3.93782034,181.59,181.53,2.92]
[1755510119045,3.08,181.57,181.56,0.04040274]
[1755510119545,3.08,181.57,181.54,2.92]
[1755510119754,3.08,181.57,181.55,0.03677726]
[1755510119951,3.08,181.57,181.55,2.95677726]